bitfinex/quotes_BTCUSD_20240906
["timestamp","ask_amount","ask_price","bid_price","bid_amount"]
[1725616052958,1.59495967,56025.0,56024.0,0.00163]
[1725616053164,1.48801044,56025.0,56024.0,0.00163]
[1725616054035,1.62169698,56025.0,56024.0,0.00163]
[1725616054251,1.48801044,56025.0,56024.0,0.00163]
[1725616054462,1.59499726,56025.0,56024.0,0.00163]
[1725616054685,1.48801044,56025.0,56024.0,0.00163]
[1725616054955,1.48801044,56025.0,56024.0,0.16073]
[1725616055217,1.13513488,56025.0,56024.0,0.16073]
[1725616055469,0.004,56025.0,56024.0,0.4495136]
[1725616055951,0.004,56025.0,56024.0,0.8065026]
[1725616056196,0.002,56025.0,56024.0,0.8065026]
[1725616056402,0.002,56025.0,56024.0,1.69599156]
[1725616056869,0.20643445,56033.0,56024.0,1.69599156]
[1725616056870,0.20643445,56033.0,56030.0,0.1648]
[1725616057087,0.000815,56036.0,56030.0,0.1648]
[1725616057088,0.000815,56036.0,56035.0,0.178459]
[1725616057328,0.000815,56036.0,56035.0,0.78551673]
[1725616057594,0.000815,56036.0,56035.0,0.81069637]
[1725616057828,0.000815,56036.0,56035.0,0.45377737]
[1725616058282,0.000815,56036.0,56035.0,0.27531837]
[1725616058529,0.000815,56036.0,56035.0,0.18997964]
[1725616058530,0.179271,56036.0,56035.0,0.18997964]
[1725616058775,0.000815,56036.0,56035.0,0.18997964]
[1725616059234,0.000815,56036.0,56035.0,0.19097964]
[1725616059235,0.179271,56036.0,56035.0,0.19097964]
[1725616059686,0.179271,56036.0,56035.0,0.19197964]
[1725616060341,1.25001,56036.0,56035.0,0.12047964]
[1725616060551,1.60646423,56036.0,56035.0,0.12047964]
[1725616060767,1.60646423,56036.0,56035.0,0.002]
[1725616060768,1.6599529,56036.0,56035.0,0.002]
[1725616060973,1.60646423,56036.0,56035.0,0.002]
[1725616061200,1.62748793,56036.0,56035.0,0.002]
[1725616062318,1.70772651,56036.0,56035.0,0.002]
[1725616064567,2.09138773,56036.0,56035.0,0.002]
[1725616064798,2.0602704,56036.0,56035.0,0.002]
[1725616066736,2.0602704,56036.0,56035.0,0.001]
[1725616066956,1.76120374,56036.0,56035.0,0.0926]
[1725616067177,1.62848793,56036.0,56035.0,0.0936]
[1725616067390,1.73545622,56036.0,56035.0,0.0936]
[1725616067625,1.74787327,56036.0,56035.0,0.0926]
[1725616067882,1.64090498,56036.0,56035.0,0.0926]
[1725616068077,1.76129241,56036.0,56035.0,0.0916]
[1725616068292,1.64090498,56036.0,56035.0,0.0916]
[1725616068530,1.64190498,56036.0,56035.0,0.0926]
[1725616068758,1.64090498,56036.0,56035.0,0.0916]
[1725616068986,1.64190498,56036.0,56035.0,0.0926]
[1725616069265,1.77662079,56036.0,56035.0,0.002]
[1725616069502,1.85182079,56036.0,56035.0,0.001]
[1725616069728,1.79502668,56036.0,56035.0,0.002]
[1725616069962,1.249283,56032.0,56031.0,0.0882]
[1725616070197,1.58273723,56032.0,56031.0,0.0882]
[1725616070881,1.70313356,56032.0,56031.0,0.0882]
[1725616071113,1.67638859,56032.0,56031.0,0.0882]
[1725616071342,1.67639175,56032.0,56031.0,0.0882]
[1725616071827,1.67638884,56032.0,56031.0,0.0882]
[1725616072055,1.36270065,56032.0,56031.0,0.0882]
[1725616072280,1.41718791,56032.0,56031.0,0.0882]
[1725616072742,1.42018791,56032.0,56031.0,0.0882]
[1725616072980,1.06324991,56032.0,56031.0,0.0882]
[1725616073221,1.04983226,56032.0,56031.0,0.0882]
[1725616073464,1.42018702,56032.0,56031.0,0.0882]
[1725616073690,1.42018702,56032.0,56031.0,0.162]
[1725616074895,0.178488,56026.0,56023.0,0.142126]
[1725616075130,0.01341676,56025.0,56024.0,0.178493]
[1725616075355,0.01341676,56025.0,56024.0,0.2866191]
[1725616076021,0.01341676,56025.0,56024.0,0.1081261]
[1725616076258,0.356967,56028.0,56024.0,0.2866201]
[1725616076512,0.356967,56028.0,56024.0,0.20770954]
[1725616076739,0.01341703,56025.0,56024.0,0.21270954]
[1725616077085,0.01341703,56025.0,56024.0,0.2956201]
[1725616077311,0.178483,56028.0,56024.0,0.2866201]
[1725616077312,0.01341703,56027.0,56024.0,0.2866201]
[1725616077535,0.01341703,56026.0,56024.0,0.20370954]
[1725616077778,0.01341703,56025.0,56024.0,0.20370954]
[1725616077964,0.01341703,56025.0,56024.0,0.44783372]
[1725616078677,0.01341703,56025.0,56024.0,0.45083372]
[1725616078899,0.01341703,56025.0,56024.0,0.44883372]
[1725616079067,0.01341703,56025.0,56024.0,0.45283372]
[1725616079653,0.01341703,56025.0,56024.0,0.45683372]
[1725616081094,0.01341703,56025.0,56024.0,1.17081172]
[1725616082256,0.01341703,56025.0,56024.0,0.27833972]
[1725616082490,0.19190803,56025.0,56024.0,0.19501554]
[1725616082919,0.54889103,56025.0,56024.0,0.19501554]
[1725616083134,0.01341703,56025.0,56024.0,0.19501554]
[1725616083846,0.01341703,56025.0,56024.0,0.12351554]
[1725616083847,0.90587403,56025.0,56024.0,0.12351554]
[1725616084491,0.90587403,56025.0,56024.0,0.03421554]
[1725616084723,1.26285703,56025.0,56024.0,0.009]
[1725616084939,0.90587403,56025.0,56024.0,0.009]
[1725616085385,1.28585703,56025.0,56024.0,0.009]
[1725616086032,1.27244,56025.0,56024.0,0.009]
[1725616086250,1.28585827,56025.0,56024.0,0.009]
[1725616086464,0.92887527,56025.0,56024.0,0.0857]
[1725616086688,1.28585827,56025.0,56024.0,0.0857]
[1725616086896,1.28585827,56025.0,56024.0,0.009]
[1725616086897,0.90587527,56025.0,56024.0,0.009]
[1725616087768,0.90587527,56025.0,56024.0,0.03421554]
[1725616088660,0.90587527,56025.0,56024.0,0.01063]
[1725616089078,0.90587527,56025.0,56024.0,0.03584554]
[1725616089289,0.90587527,56025.0,56024.0,0.01063]
[1725616089701,0.90587527,56025.0,56024.0,0.03584554]
[1725616089931,0.90587527,56025.0,56024.0,0.01063]
[1725616090127,0.90587527,56025.0,56024.0,0.03584554]
[1725616090333,0.90587527,56025.0,56024.0,0.01063]
[1725616090550,0.90587527,56025.0,56024.0,0.03584554]
[1725616090785,0.90587527,56025.0,56024.0,0.01063]
[1725616090989,0.95935993,56025.0,56024.0,0.01063]
[1725616094270,0.90587527,56025.0,56024.0,0.01063]
[1725616096485,1.31636532,56025.0,56024.0,0.01063]
[1725616097669,1.80080185,56025.0,56024.0,0.01063]
[1725616097833,2.03028731,56025.0,56024.0,0.01063]
[1725616098300,1.89651968,56025.0,56024.0,0.01063]
[1725616098535,2.03034257,56025.0,56024.0,0.01063]
[1725616098765,2.03034257,56025.0,56024.0,1e-06]
[1725616098766,2.61048568,56025.0,56024.0,1e-06]
[1725616099024,2.78456258,56025.0,56024.0,1e-06]
[1725616099464,2.38226923,56019.0,56018.0,0.001632]
[1725616099730,2.59466591,56019.0,56018.0,0.001632]
[1725616100798,2.59266591,56019.0,56018.0,0.001632]
[1725616101061,1.89669068,56019.0,56018.0,0.001632]
[1725616101308,2.2504647,56019.0,56018.0,0.001632]
[1725616101545,2.26388725,56019.0,56018.0,0.001632]
[1725616101760,2.13514919,56019.0,56018.0,0.002632]
[1725616102201,2.13014919,56019.0,56018.0,0.001632]
[1725616102421,2.13014919,56019.0,56018.0,0.002632]
[1725616102422,2.14414919,56019.0,56018.0,0.002632]
[1725616102639,2.11264863,56019.0,56018.0,0.002632]
[1725616103138,2.01971203,56019.0,56018.0,0.003632]
[1725616103590,2.09990817,56019.0,56018.0,0.003632]
[1725616103805,2.08590817,56019.0,56018.0,0.002632]
[1725616104234,2.01871203,56019.0,56018.0,0.003632]
[1725616104452,2.01071203,56019.0,56018.0,0.002632]
[1725616104670,1.99728948,56019.0,56018.0,0.002632]
[1725616104893,2.0107105,56019.0,56018.0,0.002632]
[1725616105333,2.0147105,56019.0,56018.0,0.003632]
[1725616105572,2.05517811,56019.0,56018.0,0.002632]
[1725616105790,2.08890664,56019.0,56018.0,0.002632]
[1725616105995,2.0117105,56019.0,56018.0,0.002632]
[1725616106231,2.0007105,56019.0,56018.0,0.001632]
[1725616106456,2.0067105,56019.0,56018.0,0.002632]
[1725616106740,2.0007105,56019.0,56018.0,0.001632]
[1725616107189,2.0037105,56019.0,56018.0,0.001632]
[1725616107418,2.08390664,56019.0,56018.0,0.001632]
[1725616107902,2.0037105,56019.0,56018.0,0.001632]
[1725616108124,1.98728948,56019.0,56018.0,0.001632]
[1725616108350,2.00371059,56019.0,56018.0,0.001632]
[1725616108809,2.08390673,56019.0,56018.0,0.001632]
[1725616109491,2.00371059,56019.0,56018.0,0.001632]
[1725616109920,2.08390062,56019.0,56018.0,0.001632]
[1725616110355,1.77469951,56019.0,56018.0,0.001632]
[1725616110592,2.03340481,56019.0,56018.0,0.001632]
[1725616111287,2.03040481,56019.0,56018.0,0.001632]
[1725616111722,2.03340481,56019.0,56018.0,0.001632]
[1725616112146,2.02740481,56019.0,56018.0,0.001632]
[1725616112347,2.02940481,56019.0,56018.0,0.001632]
[1725616112560,1.95120951,56019.0,56018.0,0.001632]
[1725616112773,1.94920951,56019.0,56018.0,0.001632]
[1725616113227,1.95120951,56019.0,56018.0,0.001632]
[1725616114065,2.03140481,56019.0,56018.0,0.001632]
[1725616114541,2.46072581,56019.0,56018.0,0.001632]
[1725616114758,2.48945824,56019.0,56018.0,0.001632]
[1725616114974,2.38253051,56019.0,56018.0,0.001632]
[1725616115422,2.38053051,56019.0,56018.0,0.001632]
[1725616115648,2.48540941,56019.0,56018.0,0.001632]
[1725616115892,2.02350951,56019.0,56018.0,0.002632]
[1725616116118,2.03250951,56019.0,56018.0,0.003632]
[1725616116329,2.04036486,56019.0,56018.0,0.003632]
[1725616116784,1.96020951,56019.0,56018.0,0.003632]
[1725616117458,1.9467884,56019.0,56018.0,0.003632]
[1725616117898,2.01364056,56019.0,56018.0,0.003632]
[1725616118797,1.96021019,56019.0,56018.0,0.003632]
[1725616120222,2.01364293,56019.0,56018.0,0.003632]
[1725616120438,1.96021019,56019.0,56018.0,0.003632]
[1725616120920,1.60318919,56019.0,56018.0,0.003632]
[1725616121139,1.58018919,56019.0,56018.0,0.003632]
[1725616121818,1.63362675,56019.0,56018.0,0.003632]
[1725616122223,1.58018919,56019.0,56018.0,0.003632]
[1725616122685,1.63362675,56019.0,56018.0,0.003632]
[1725616122903,1.58018919,56019.0,56018.0,0.003632]
[1725616123567,1.73664241,56019.0,56018.0,0.003632]
[1725616124233,1.58018919,56019.0,56018.0,0.003632]
[1725616124453,1.73667511,56019.0,56018.0,0.003632]
[1725616124949,1.58100519,56019.0,56018.0,0.003632]
[1725616125154,1.63445553,56019.0,56018.0,0.003632]
[1725616125586,1.63446184,56019.0,56018.0,0.003632]
[1725616125827,1.58100519,56019.0,56018.0,0.003632]
[1725616126090,1.73749811,56019.0,56018.0,0.003632]
[1725616126979,1.65732047,56019.0,56018.0,0.003632]
[1725616127200,1.76418443,56019.0,56018.0,0.003632]
[1725616127423,2.19078233,56019.0,56018.0,0.003632]
[1725616127637,1.86047732,56019.0,56018.0,0.003632]
[1725616127850,1.68032047,56019.0,56018.0,0.003632]
[1725616128081,1.7872812,56019.0,56018.0,0.003632]
[1725616128276,2.03734147,56019.0,56018.0,0.003632]
[1725616128839,2.17092142,56019.0,56018.0,0.003632]
[1725616129743,2.15749963,56019.0,56018.0,0.003632]
[1725616130154,2.17092133,56019.0,56018.0,0.003632]
[1725616132023,2.03734138,56019.0,56018.0,0.003632]
[1725616132714,2.02391968,56019.0,56018.0,0.003632]
[1725616132930,2.03734143,56019.0,56018.0,0.003632]
[1725616133366,1.68032043,56019.0,56018.0,0.003632]
[1725616133630,1.81410801,56019.0,56018.0,0.003632]
[1725616133846,1.81411026,56019.0,56018.0,0.003632]
[1725616134103,1.58065603,56019.0,56018.0,0.003632]
[1725616134340,1.78734767,56019.0,56018.0,0.003632]
[1725616134587,1.65732043,56019.0,56018.0,0.003632]
[1725616135542,2.11154143,56019.0,56018.0,0.003632]
[1725616136916,2.11354143,56019.0,56018.0,0.003632]
[1725616137130,2.11154143,56019.0,56018.0,0.003632]
[1725616137350,2.27183737,56019.0,56018.0,0.003632]
[1725616137555,2.11154143,56019.0,56018.0,0.003632]
[1725616139515,2.03734143,56019.0,56018.0,0.003632]
[1725616139945,2.03734143,56019.0,56018.0,0.090632]
[1725616142241,2.03734124,56019.0,56018.0,0.090632]
[1725616144553,2.19813859,56019.0,56018.0,0.090632]
[1725616145211,2.18471703,56019.0,56018.0,0.090632]
[1725616145663,2.19813865,56019.0,56018.0,0.090632]
[1725616146616,2.0373413,56019.0,56018.0,0.003632]
[1725616147955,2.3943623,56019.0,56018.0,0.003632]
[1725616148172,2.38094068,56019.0,56018.0,0.003632]
[1725616148602,2.39436261,56019.0,56018.0,0.003632]
[1725616149563,2.19824865,56019.0,56018.0,0.003632]
[1725616150895,1.80388738,56019.0,56018.0,0.003632]
[1725616151111,1.78088738,56019.0,56018.0,0.172132]
[1725616151361,1.78088738,56019.0,56018.0,0.099032]
[1725616151878,1.78088673,56019.0,56018.0,0.099032]
[1725616154534,1.76746545,56019.0,56018.0,0.099032]
[1725616154755,1.78088682,56019.0,56018.0,0.099032]
[1725616155857,1.94179386,56019.0,56018.0,0.003632]
[1725616156548,1.96479386,56019.0,56018.0,0.003632]
[1725616157252,1.8543879,56019.0,56018.0,0.003632]
[1725616158212,1.8563879,56019.0,56018.0,0.003632]
[1725616158460,1.9309879,56019.0,56018.0,0.003632]
[1725616158939,2.44893655,56019.0,56018.0,0.003632]
[1725616159426,2.2880089,56019.0,56018.0,0.003632]
[1725616160752,2.44893655,56019.0,56018.0,0.003632]
[1725616161193,2.27458753,56019.0,56018.0,0.003632]
[1725616161407,2.28458753,56019.0,56018.0,0.003632]
[1725616161625,2.29801117,56019.0,56018.0,0.003632]
[1725616164507,2.28458753,56019.0,56018.0,0.003632]
[1725616164784,2.28458753,56019.0,56018.0,0.009554]
[1725616165010,2.2980108,56019.0,56018.0,0.009554]
[1725616167687,2.2960108,56019.0,56018.0,0.009554]
[1725616167909,2.45687987,56019.0,56018.0,0.009554]
[1725616168124,2.42053045,56019.0,56018.0,0.009554]
[1725616168592,2.42253045,56019.0,56018.0,0.009554]
[1725616168807,2.42053045,56019.0,56018.0,0.009554]
[1725616169297,2.42253045,56019.0,56018.0,0.009554]
[1725616169514,2.42053045,56019.0,56018.0,0.009554]
[1725616169725,2.42253045,56019.0,56018.0,0.009554]
[1725616170184,2.2214108,56019.0,56018.0,0.009554]
[1725616170408,2.34593045,56019.0,56018.0,0.009554]
[1725616170660,1.98890945,56019.0,56018.0,0.009554]
[1725616171161,1.97890945,56019.0,56018.0,0.009554]
[1725616171415,1.94248618,56019.0,56018.0,0.009554]
[1725616171651,1.95590768,56019.0,56018.0,0.009554]
[1725616171864,1.47436703,56019.0,56018.0,0.171154]
[1725616172542,0.12479403,56019.0,56018.0,0.171154]
[1725616172789,0.31293609,56019.0,56018.0,0.25656866]
[1725616173012,0.2057475,56019.0,56018.0,0.28180379]
[1725616173287,0.28612538,56019.0,56018.0,0.28180379]
[1725616173525,0.27712538,56019.0,56018.0,0.28080379]
[1725616173763,0.63014638,56019.0,56018.0,0.27980379]
[1725616173978,0.37312538,56019.0,56018.0,0.27980379]
[1725616175118,0.35970388,56019.0,56018.0,0.27980379]
[1725616175362,0.44116514,56019.0,56018.0,0.27980379]
[1725616175593,0.24550076,56019.0,56018.0,0.27980379]
[1725616176272,0.01341994,56019.0,56018.0,0.27980379]
[1725616176490,0.01341994,56019.0,56018.0,0.45831779]
[1725616177020,0.01341994,56019.0,56018.0,1.70491275]
[1725616178402,0.178475,56031.0,56026.0,0.699365]
[1725616178645,0.01423181,56027.0,56026.0,0.78313139]
[1725616178912,0.01423181,56027.0,56026.0,0.8083404]
[1725616180752,0.01423181,56027.0,56026.0,0.4573634]
[1725616181005,0.01423181,56027.0,56026.0,0.8143404]
[1725616181520,0.01423181,56027.0,56026.0,0.4573634]
[1725616181754,0.01523171,56027.0,56026.0,0.4643634]
[1725616182247,0.01523171,56027.0,56026.0,0.8213404]
[1725616182466,0.01523171,56027.0,56026.0,0.4643634]
[1725616182706,0.01523171,56027.0,56026.0,0.2858754]
[1725616183651,0.01523171,56027.0,56026.0,0.20210901]
[1725616185087,1.12759111,56027.0,56026.0,0.20210901]
[1725616185356,1.14100866,56027.0,56026.0,0.20210901]
[1725616185599,1.14100866,56027.0,56026.0,0.1769]
[1725616185600,0.90765755,56027.0,56026.0,0.1769]
[1725616186311,0.90765755,56027.0,56026.0,0.20210901]
[1725616186555,0.90765755,56027.0,56026.0,0.1769]
[1725616188456,0.89424,56027.0,56026.0,0.1769]
[1725616188704,0.90765753,56027.0,56026.0,0.1769]
[1725616188937,0.90765753,56027.0,56026.0,0.20210901]
[1725616189611,0.90765753,56027.0,56026.0,0.1769]
[1725616189832,0.90765753,56027.0,56026.0,0.20210901]
[1725616190587,0.01523253,56027.0,56026.0,0.20210901]
[1725616191059,0.001815,56027.0,56026.0,0.20210901]
[1725616191290,0.001815,56027.0,56026.0,0.28260446]
[1725616191508,0.001815,56027.0,56026.0,0.46109246]
[1725616191753,0.001815,56027.0,56026.0,0.28260446]
[1725616191991,0.001815,56027.0,56026.0,0.46109246]
[1725616192216,0.0152316,56027.0,56026.0,0.81806946]
[1725616192467,0.0152316,56027.0,56026.0,0.46109246]
[1725616192938,0.02864785,56027.0,56026.0,0.46109246]
[1725616193620,0.0152316,56027.0,56026.0,0.46109246]
[1725616193856,0.02864823,56027.0,56026.0,0.46109246]
[1725616198039,0.02864823,56027.0,56026.0,0.28260446]
[1725616198267,0.02864823,56027.0,56026.0,0.46109246]
[1725616198498,0.02864823,56027.0,56026.0,0.28260446]
[1725616198958,0.02864823,56027.0,56026.0,0.20210901]
[1725616200844,0.0152316,56027.0,56026.0,0.20210901]
[1725616201086,0.02864838,56027.0,56026.0,0.20210901]
[1725616202759,0.01523178,56027.0,56026.0,0.20210901]
[1725616204023,0.01523178,56027.0,56026.0,0.81898486]
[1725616204254,0.01523178,56027.0,56026.0,0.46200786]
[1725616204487,0.01523105,56027.0,56026.0,0.28351986]
[1725616204720,0.01523105,56027.0,56026.0,0.46200786]
[1725616205391,0.01523105,56027.0,56026.0,1.17596186]
[1725616206318,0.01523105,56027.0,56026.0,0.81898486]
[1725616208731,0.01523105,56027.0,56026.0,0.20210901]
[1725616208973,0.01523105,56027.0,56026.0,0.03820901]
[1725616208974,1.00785605,56027.0,56026.0,0.03820901]
[1725616209211,1.36482605,56027.0,56026.0,0.03820901]
[1725616209446,1.46482605,56027.0,56026.0,0.013]
[1725616209657,1.89782036,56027.0,56026.0,0.013]
[1725616209906,1.91884687,56027.0,56026.0,0.007]
[1725616210133,1.249552,56020.0,56019.0,0.001632]
[1725616210374,1.38736202,56020.0,56019.0,0.001632]
[1725616212235,1.26296805,56020.0,56019.0,0.001632]
[1725616212682,1.26396805,56020.0,56019.0,0.011632]
[1725616212884,1.26496805,56020.0,56019.0,0.020632]
[1725616215674,1.06922446,56020.0,56019.0,0.020632]
[1725616215893,1.24773146,56020.0,56019.0,0.020632]
[1725616216345,1.70384646,56020.0,56019.0,0.020632]
[1725616216601,1.40016864,56020.0,56019.0,0.020632]
[1725616217064,1.26873146,56020.0,56019.0,0.001632]
[1725616217283,1.32506864,56020.0,56019.0,0.001632]
[1725616217757,1.32207318,56020.0,56019.0,0.001632]
[1725616217977,1.268736,56020.0,56019.0,0.001632]
[1725616218454,1.32507318,56020.0,56019.0,0.001632]
[1725616218680,1.32207318,56020.0,56019.0,0.001632]
[1725616221716,1.32224044,56020.0,56019.0,0.001632]
[1725616223280,1.268736,56020.0,56019.0,0.001632]
[1725616224177,1.30881985,56020.0,56019.0,0.001632]
[1725616224410,1.26873598,56020.0,56019.0,0.001632]
[1725616225566,1.70305098,56020.0,56019.0,0.001632]
[1725616225789,2.16006598,56020.0,56019.0,0.001632]
[1725616226242,2.32133742,56020.0,56019.0,0.001632]
[1725616226464,2.33133742,56020.0,56019.0,0.001632]
[1725616226714,2.33133742,56020.0,56008.0,0.001632]
[1725616226715,0.337342,56009.0,56008.0,0.001632]
[1725616226955,1.28484359,56009.0,56008.0,0.001632]
[1725616227218,2.13543841,56009.0,56008.0,0.001632]
[1725616227423,2.24235364,56009.0,56008.0,0.001632]
[1725616228368,2.13543841,56009.0,56008.0,0.001632]
[1725616228612,2.50252341,56009.0,56008.0,0.001632]
[1725616228837,2.50452341,56009.0,56008.0,0.001632]
[1725616229054,2.61143864,56009.0,56008.0,0.001632]
[1725616229542,2.71464362,56009.0,56008.0,0.001632]
[1725616229544,2.72364362,56009.0,56008.0,0.002632]
[1725616229804,2.57569474,56009.0,56008.0,0.002632]
[1725616230049,2.58669474,56009.0,56008.0,0.003632]
[1725616230297,2.59212112,56009.0,56008.0,0.002632]
[1725616230549,2.50552497,56009.0,56008.0,0.002632]
[1725616231022,2.53350914,56009.0,56008.0,0.002632]
[1725616231268,2.62158162,56009.0,56008.0,0.003632]
[1725616231522,2.54150914,56009.0,56008.0,0.003632]
[1725616232030,2.18442414,56009.0,56008.0,0.003632]
[1725616232261,2.09273508,56009.0,56008.0,0.003632]
[1725616232741,1.77178402,56009.0,56008.0,0.003632]
[1725616232968,1.95032602,56009.0,56008.0,0.003632]
[1725616233232,1.94232602,56009.0,56008.0,0.002632]
[1725616233468,1.93732602,56009.0,56008.0,0.002632]
[1725616233692,1.94432602,56009.0,56008.0,0.003632]
[1725616233926,1.93632602,56009.0,56008.0,0.002632]
[1725616234143,1.94232602,56009.0,56008.0,0.003632]
[1725616234569,1.58524102,56009.0,56008.0,0.003632]
[1725616235767,1.32890943,56009.0,56008.0,0.093532]
[1725616236925,1.31548305,56009.0,56008.0,0.093532]
[1725616237171,1.32890677,56009.0,56008.0,0.093532]
[1725616240144,1.31548305,56009.0,56008.0,0.093532]
[1725616240386,1.32890668,56009.0,56008.0,0.093532]
[1725616243579,1.32890668,56009.0,56008.0,0.003632]
[1725616243813,1.70980768,56009.0,56008.0,0.003632]
[1725616244030,1.69638405,56009.0,56008.0,0.003632]
[1725616244470,1.70980748,56009.0,56008.0,0.003632]
[1725616244720,2.00983907,56009.0,56008.0,0.003632]
[1725616244930,2.00316744,56009.0,56008.0,0.003632]
[1725616246907,2.00316802,56009.0,56008.0,0.003632]
[1725616249374,1.64608302,56009.0,56008.0,0.075732]
[1725616249809,1.63265901,56009.0,56008.0,0.075732]
[1725616250261,1.64608246,56009.0,56008.0,0.075732]
[1725616252683,1.63265901,56009.0,56008.0,0.075732]
[1725616252940,1.6460827,56009.0,56008.0,0.075732]
[1725616253150,1.65950639,56009.0,56008.0,0.075732]
[1725616253599,1.6460827,56009.0,56008.0,0.075732]
[1725616254784,1.6230827,56009.0,56008.0,0.075732]
[1725616256165,1.38975111,56009.0,56008.0,0.075732]
[1725616258024,1.44321798,56009.0,56008.0,0.075732]
[1725616258475,1.38975111,56009.0,56008.0,0.075732]
[1725616258938,1.03266611,56009.0,56008.0,0.075732]
[1725616259161,1.01924242,56009.0,56008.0,0.075732]
[1725616259780,1.03266538,56009.0,56008.0,0.075732]
[1725616260019,1.38975038,56009.0,56008.0,0.075732]
[1725616260700,1.51958331,56009.0,56008.0,0.075732]
[1725616261591,1.44323534,56009.0,56008.0,0.075732]
[1725616261822,1.51960371,56009.0,56008.0,0.075732]
[1725616263690,1.01395096,56009.0,56008.0,0.157732]
[1725616263921,1.00695096,56009.0,56008.0,0.156732]
[1725616264396,1.00895096,56009.0,56008.0,0.156732]
[1725616264624,1.01095096,56009.0,56008.0,0.156732]
[1725616264837,1.01066253,56009.0,56008.0,0.156732]
[1725616265378,1.01045518,56009.0,56008.0,0.156732]
[1725616265720,0.99703222,56009.0,56008.0,0.156732]
[1725616265775,1.01045463,56009.0,56008.0,0.156732]
[1725616267785,1.06398529,56009.0,56008.0,0.156732]
[1725616268876,1.05056288,56009.0,56008.0,0.156732]
[1725616269094,1.06398528,56009.0,56008.0,0.156732]
[1725616270167,0.99703222,56009.0,56008.0,0.156732]
[1725616270310,1.09075061,56009.0,56008.0,0.156732]
[1725616270533,1.1939486,56009.0,56008.0,0.156732]
[1725616270985,1.10988727,56009.0,56008.0,0.001632]
[1725616271204,1.43711651,56009.0,56008.0,0.001632]
[1725616271436,1.53718002,56009.0,56008.0,0.001632]
[1725616271677,1.89426502,56009.0,56008.0,0.001632]
[1725616272222,2.12780133,56009.0,56008.0,0.001632]
[1725616272424,2.1278038,56009.0,56008.0,0.001632]
[1725616273151,2.28853671,56009.0,56008.0,0.001632]
[1725616273392,2.1278038,56009.0,56008.0,0.001632]
[1725616273624,2.28853671,56009.0,56008.0,0.001632]
[1725616273852,2.1278038,56009.0,56008.0,0.001632]
[1725616274065,2.28853671,56009.0,56008.0,0.001632]
[1725616275490,2.27511185,56009.0,56008.0,0.001632]
[1725616275658,1.66409394,56009.0,56008.0,0.001632]
[1725616275899,1.5671914,56009.0,56008.0,0.001632]
[1725616276112,1.67437276,56009.0,56008.0,0.001632]
[1725616276351,1.64372508,56009.0,56008.0,0.001632]
[1725616277283,2.02381008,56009.0,56008.0,0.001632]
[1725616277491,1.66672508,56009.0,56008.0,0.001632]
[1725616279078,1.66754108,56009.0,56008.0,0.001632]
[1725616279555,1.66754108,56009.0,56008.0,0.164432]
[1725616279556,1.72502105,56009.0,56008.0,0.164432]
[1725616279792,0.97738609,56009.0,56008.0,0.164432]
[1725616280007,1.11070354,56009.0,56008.0,0.164432]
[1725616280235,0.97668989,56009.0,56008.0,0.164432]
[1725616281326,0.11824134,56009.0,56008.0,0.18830084]
[1725616281558,0.29678334,56009.0,56008.0,0.18830084]
[1725616282175,0.283358,56009.0,56008.0,0.18830084]
[1725616282474,0.65386655,56009.0,56008.0,0.18830084]
[1725616282693,0.29678155,56009.0,56008.0,0.18830084]
[1725616283156,0.65386655,56009.0,56008.0,0.18830084]
[1725616283371,0.11823955,56009.0,56008.0,0.18830084]
[1725616283587,0.29678155,56009.0,56008.0,0.18830084]
[1725616284013,0.37718559,56009.0,56008.0,0.18830084]
[1725616284701,0.01823855,56009.0,56008.0,0.80967111]
[1725616284957,0.01823855,56009.0,56008.0,0.45258011]
[1725616285372,0.004816,56009.0,56008.0,0.27403511]
[1725616285566,0.897528,56009.0,56008.0,0.18830084]
[1725616285631,0.94912672,56009.0,56008.0,0.18830084]
[1725616285845,0.94912672,56009.0,56008.0,0.164432]
[1725616285846,0.5538642,56009.0,56008.0,0.164432]
[1725616286308,0.55386558,56009.0,56008.0,0.164432]
[1725616287030,0.54986558,56009.0,56008.0,0.164432]
[1725616287250,0.55186558,56009.0,56008.0,0.164432]
[1725616287469,0.63225611,56009.0,56008.0,0.176432]
[1725616287684,0.01423858,56009.0,56008.0,0.176432]
[1725616287900,0.01523858,56009.0,56008.0,0.189432]
[1725616288113,0.24737239,56009.0,56008.0,0.21330084]
[1725616288351,0.60445739,56009.0,56008.0,0.21330084]
[1725616289014,0.55086558,56009.0,56008.0,0.21330084]
[1725616289246,1.14148689,56009.0,56008.0,0.189432]
[1725616289490,1.85941268,56009.0,56008.0,0.026632]
[1725616289973,2.37731542,56009.0,56008.0,0.026632]
[1725616290190,2.02023042,56009.0,56008.0,0.014632]
[1725616290425,1.85941268,56009.0,56008.0,0.014632]
[1725616290631,2.21649768,56009.0,56008.0,0.020632]
[1725616290845,2.21549768,56009.0,56008.0,0.007632]
[1725616291058,2.21549768,56009.0,56008.0,0.008632]
[1725616292006,2.2030751,56009.0,56008.0,0.008632]
[1725616292012,2.2060751,56009.0,56008.0,0.001632]
[1725616292019,2.13510002,56009.0,56008.0,0.002632]
[1725616292024,2.13110002,56009.0,56008.0,0.002632]
[1725616292458,2.29188011,56009.0,56008.0,0.002632]
[1725616292777,2.3053048,56009.0,56008.0,0.002632]
[1725616292913,2.31872953,56009.0,56008.0,0.002632]
[1725616293130,2.31172953,56009.0,56008.0,0.001632]
[1725616293364,2.31172953,56009.0,56008.0,0.002632]
[1725616293365,2.30530484,56009.0,56008.0,0.002632]
[1725616293874,2.29487992,56009.0,56008.0,0.002632]
[1725616294082,2.13109983,56009.0,56008.0,0.002632]
[1725616294311,2.14109983,56009.0,56008.0,0.003632]
[1725616294787,2.07089983,56009.0,56008.0,0.003632]
[1725616296780,2.58874115,56009.0,56008.0,0.003632]
[1725616297029,2.64126173,56009.0,56008.0,0.003632]
[1725616297277,3.02778472,56009.0,56008.0,0.003632]
[1725616297498,2.36434131,56005.0,56004.0,0.001632]
[1725616297778,2.57700683,56005.0,56004.0,0.001632]
[1725616298082,2.5615821,56005.0,56004.0,0.001632]
[1725616298187,2.58956679,56005.0,56004.0,0.001632]
[1725616298419,2.60299358,56005.0,56004.0,0.001632]
[1725616299757,2.61699358,56005.0,56004.0,0.002632]
[1725616300026,1.976143,56004.0,56003.0,0.001632]
[1725616300257,0.893062,55987.0,55986.0,0.1599]